[Event "82nd Brazilian-ch 2015"]
[Site "Rio de Janeiro"]
[Date "2016.01.11"]
[Round "3"]
[White "Santiago, Yago De Moura"]
[Black "Brito, Luismar"]
[Result "0-1"]
[ECO "B42"]
[WhiteElo "2422"]
[BlackElo "2235"]
[PlyCount "58"]
[EventDate "2016.??.??"]
[EventCountry "BRA"]
[TimeControl "5400+30"]

1. e4 c5 2. Nf3 e6 3. d4 cxd4 4. Nxd4 a6 5. Bd3 Ne7 6. Qe2 Nbc6 7. Nb3 Ng6 8.
f4 d6 9. Be3 Be7 10. Nc3 b5 11. g3 Qc7 12. O-O-O Bf6 13. e5 dxe5 14. fxe5 Bxe5
15. Bc5 Bd7 16. Ne4 f5 17. Ng5 Na5 18. Nd4 Qxc5 19. Ndxe6 Qe7 20. Bxf5 Bxb2+
21. Kxb2 Nc4+ 22. Ka1 Bxe6 23. Bxg6+ hxg6 24. Nxe6 Kf7 25. Rhf1+ Kg8 26. Qe4
Re8 27. Rde1 Rxh2 28. Qd5 Kh8 29. Re4 Qf6+ 0-1

[Event "82nd Brazilian-ch 2015"]
[Site "Rio de Janeiro"]
[Date "2016.01.11"]
[Round "3"]
[White "Souza, Rafael Cabral de"]
[Black "Barbosa, Evandro Amorim"]
[Result "0-1"]
[ECO "B89"]
[WhiteElo "2159"]
[BlackElo "2461"]
[PlyCount "50"]
[EventDate "2016.??.??"]
[EventCountry "BRA"]
[TimeControl "5400+30"]

1. e4 c5 2. Nf3 e6 3. Nc3 Nc6 4. d4 cxd4 5. Nxd4 d6 6. Be3 Nf6 7. Bc4 a6 8. Bb3
Be7 9. Qe2 Na5 10. O-O-O Nxb3+ 11. Nxb3 Qc7 12. a4 b6 13. g4 Bb7 14. f3 O-O 15.
Kb1 Nd7 16. Nd4 Nc5 17. Bc1 b5 18. axb5 Rfb8 19. Be3 axb5 20. Ncxb5 Qa5 21. c4
Nxe4 22. fxe4 Bxe4+ 23. Kc1 Bxh1 24. Nb3 Qb4 25. Rxh1 Qxb3 0-1

[Event "82nd Brazilian-ch 2015"]
[Site "Rio de Janeiro"]
[Date "2016.01.12"]
[Round "5"]
[White "Brito, Luismar"]
[Black "Teixeira, Ricardo da Silva"]
[Result "1/2-1/2"]
[ECO "A00"]
[WhiteElo "2235"]
[BlackElo "2234"]
[PlyCount "117"]
[EventDate "2016.??.??"]
[EventCountry "BRA"]
[TimeControl "5400+30"]

1. Nc3 d5 2. e4 d4 3. Nce2 Nc6 4. c3 e5 5. Nf3 Bg4 6. Ng3 Nf6 7. Bb5 Bc5 8.
Bxc6+ bxc6 9. Qa4 Bxf3 10. Qxc6+ Nd7 11. gxf3 O-O 12. Nf5 g6 13. Rg1 Kh8 14.
Ng3 Rb8 15. d3 Rb6 16. Qa4 dxc3 17. bxc3 Rd6 18. Qc2 Qh4 19. Be3 Rd8 20. Rd1
Bb6 21. d4 Nf8 22. Ke2 exd4 23. cxd4 Ne6 24. d5 Nf4+ 25. Bxf4 Qxf4 26. Qc1 Qh4
27. h3 f5 28. Qc3+ Kg8 29. Rg2 fxe4 30. Nxe4 Re8 31. Kf1 Qxh3 32. Ng3 c6 33.
Qb3 Rxd5 34. Rxd5 cxd5 35. Qxd5+ Qe6 36. Qd2 Qc4+ 37. Kg1 Rd8 38. Qg5 Rd1+ 39.
Kh2 Qc1 40. f4 Bc7 41. Ne2 Qd2 42. Qg4 Qd7 43. Qh5 Rd5 44. Rg5 Qf7 45. Qg4 Rxg5
46. Qxg5 Qxa2 47. Qg4 Qf7 48. Qf3 g5 49. Kg2 Bxf4 50. Nd4 Kg7 51. Qe4 Bc7 52.
f3 Qa2+ 53. Kf1 Qa1+ 54. Kg2 Qb2+ 55. Kf1 Qc1+ 56. Kg2 Qd2+ 57. Kf1 Qd1+ 58.
Kg2 Qd2+ 59. Kf1 1/2-1/2

[Event "82nd Brazilian-ch 2015"]
[Site "Rio de Janeiro"]
[Date "2016.01.12"]
[Round "5"]
[White "Choma, Ernani Francisco"]
[Black "Santos, Marcus Vinicius M"]
[Result "1-0"]
[ECO "A04"]
[WhiteElo "2383"]
[BlackElo "2367"]
[PlyCount "93"]
[EventDate "2016.??.??"]
[EventCountry "BRA"]
[TimeControl "5400+30"]

1. Nf3 {[%emt 0:04:44]} g6 {[%emt 0:00:00]} 2. c4 {[%emt 0:00:07]} Bg7 {
[%emt 0:00:01]} 3. d4 {[%emt 0:00:14]} d6 {[%emt 0:00:16]} 4. g3 {[%emt 0:00:
27]} Nd7 {[%emt 0:00:19]} 5. Bg2 {[%emt 0:00:24]} e5 {[%emt 0:00:24]} 6. Nc3 {
[%emt 0:00:27]} Ne7 {[%emt 0:00:16]} 7. O-O {[%emt 0:00:21]} O-O {[%emt 0:00:
13]} 8. e4 {[%emt 0:02:23]} exd4 {[%emt 0:01:14]} 9. Nxd4 {[%emt 0:00:07]} Nc6
{[%emt 0:00:13]} 10. Nde2 {[%emt 0:00:13]} a5 {[%emt 0:00:41]} 11. Rb1 {
[%emt 0:01:10]} Nc5 {[%emt 0:01:00]} 12. Be3 {[%emt 0:00:39]} a4 {[%emt 0:01:
36]} 13. Nb5 {[%emt 0:03:07]} Be6 {[%emt 0:10:28]} 14. b3 {[%emt 0:03:48]} axb3
{[%emt 0:07:32]} 15. axb3 {[%emt 0:00:17]} Nb4 {[%emt 0:07:47]} 16. Nf4 {
[%emt 0:11:59]} Bd7 {[%emt 0:01:59]} 17. Qd2 {[%emt 0:13:11]} Nc6 {[%emt 0:03:
50]} 18. Nd5 {[%emt 0:06:00]} Rc8 {[%emt 0:09:57]} 19. b4 {[%emt 0:01:43]} Ne6
{[%emt 0:02:26]} 20. f4 {[%emt 0:00:58]} f5 {[%emt 0:12:44]} 21. exf5 {[%emt 0:
07:27]} gxf5 {[%emt 0:00:08]} 22. Rfe1 {[%emt 0:02:36]} Kh8 {[%emt 0:01:47]}
23. Kh1 {[%emt 0:07:34]} Be8 {[%emt 0:03:59]} 24. Bf2 {[%emt 0:05:06]} Qd7 {
[%emt 0:01:54]} 25. Nbxc7 {[%emt 0:12:18]} Nxc7 {[%emt 0:01:58]} 26. Nb6 {
[%emt 0:00:20]} Qd8 {[%emt 0:00:39]} 27. Nxc8 {[%emt 0:00:25]} Qxc8 {[%emt 0:
00:28]} 28. b5 {[%emt 0:00:39]} Nd8 {[%emt 0:04:36]} 29. Qxd6 {[%emt 0:01:10]}
Bf7 {[%emt 0:01:40]} 30. c5 {[%emt 0:05:14]} Ne8 {[%emt 0:03:52]} 31. Qb6 {
[%emt 0:05:43]} Nf6 {[%emt 0:01:11]} 32. c6 {[%emt 0:02:07]} bxc6 {[%emt 0:00:
35]} 33. bxc6 {[%emt 0:00:42]} Ne4 {[%emt 0:02:46]} 34. Rbc1 {[%emt 0:01:14]}
Bd5 {[%emt 0:03:41]} 35. c7 {[%emt 0:01:13]} Ne6 {[%emt 0:01:07]} 36. Red1 {
[%emt 0:00:26]} Bb7 {[%emt 0:04:16]} 37. Be3 {[%emt 0:00:05]} Ba8 {[%emt 0:04:
52]} 38. Kg1 {[%emt 0:01:17]} Re8 {[%emt 0:01:34]} 39. Bf1 {[%emt 0:00:22]} Bb7
{[%emt 0:02:56]} 40. Bb5 {[%emt 0:00:16]} Rf8 {[%emt 0:01:08]} 41. Bd7 {
[%emt 0:00:21]} Qa8 {[%emt 0:00:47]} 42. Qxe6 {[%emt 0:00:17]} Qa3 {[%emt 0:00:
21]} 43. Qb6 {[%emt 0:00:59]} Nc3 {[%emt 0:01:14]} 44. Qxb7 {[%emt 0:01:06]}
Nxd1 {[%emt 0:00:17]} 45. Rxd1 {[%emt 0:00:24]} Qxe3+ {[%emt 0:00:09]} 46. Kh1
{[%emt 0:00:11]} Qe2 {[%emt 0:01:32]} 47. Rb1 {[%emt 0:00:15]} 1-0

[Event "82nd Brazilian-ch 2015"]
[Site "Rio de Janeiro"]
[Date "2016.01.12"]
[Round "5"]
[White "Leitao, Rafael Duailibe"]
[Black "Macedo, Maximo Iack"]
[Result "1/2-1/2"]
[ECO "D30"]
[WhiteElo "2633"]
[BlackElo "2316"]
[PlyCount "92"]
[EventDate "2016.??.??"]
[EventCountry "BRA"]
[TimeControl "5400+30"]

1. d4 {[%emt 0:01:19]} Nf6 {[%emt 0:00:01]} 2. c4 {[%emt 0:00:07]} e6 {[%emt 0:
00:09]} 3. Nf3 {[%emt 0:00:20]} d5 {[%emt 0:00:37]} 4. Bg5 {[%emt 0:01:14]} h6
{[%emt 0:08:45]} 5. Bxf6 {[%emt 0:00:16]} Qxf6 {[%emt 0:00:06]} 6. e3 {[%emt 0:
11:29]} g6 {[%emt 0:03:41]} 7. Nc3 {[%emt 0:04:56]} c6 {[%emt 0:00:07]} 8. Bd3
{[%emt 0:01:48]} Nd7 {[%emt 0:02:17]} 9. O-O {[%emt 0:00:49]} Bg7 {[%emt 0:00:
05]} 10. Rc1 {[%emt 0:08:17]} O-O {[%emt 0:00:33]} 11. Qe2 {[%emt 0:05:02]} Qe7
{[%emt 0:22:36]} 12. Rfd1 {[%emt 0:02:02]} f5 {[%emt 0:03:16]} 13. a3 {[%emt 0:
01:44]} a6 {[%emt 0:19:38]} 14. Bb1 {[%emt 0:05:53]} Kh8 {[%emt 0:02:30]} 15.
Ba2 {[%emt 0:02:22]} Rb8 {[%emt 0:04:52]} 16. Nb1 {[%emt 0:10:09]} dxc4 {
[%emt 0:09:18]} 17. Qxc4 {[%emt 0:11:28]} e5 {[%emt 0:00:29]} 18. Qe6 {[%emt 0:
04:24]} Qxe6 {[%emt 0:05:09]} 19. Bxe6 exd4 {[%emt 0:00:49]} 20. exd4 {[%emt 0:
04:11]} Nb6 {[%emt 0:03:19]} 21. Ba2 {[%emt 0:01:24]} f4 {[%emt 0:04:41]} 22.
Nbd2 {[%emt 0:01:13]} g5 {[%emt 0:01:18]} 23. h3 {[%emt 0:05:55]} Bf5 {[%emt 0:
00:35]} 24. Ne5 {[%emt 0:01:54]} Kh7 {[%emt 0:00:33]} 25. Ndf3 {[%emt 0:00:22]}
Bf6 {[%emt 0:01:48]} 26. Re1 {[%emt 0:02:20]} Rbd8 {[%emt 0:01:12]} 27. Re2 {
[%emt 0:02:54]} Nd5 {[%emt 0:00:30]} 28. Rce1 {[%emt 0:01:05]} Kg7 {[%emt 0:01:
33]} 29. Nc4 {[%emt 0:00:46]} Bd3 {[%emt 0:00:39]} 30. Re6 Bf5 {[%emt 0:00:01]}
31. Rd6 {[%emt 0:04:50]} Rde8 {[%emt 0:00:02]} 32. Rxe8 {[%emt 0:00:13]} Rxe8 {
[%emt 0:00:00]} 33. Rxd5 {[%emt 0:00:23]} cxd5 {[%emt 0:03:07]} 34. Nd6 Bd7 {
[%emt 0:00:01]} 35. Nxe8+ {[%emt 0:00:15]} Bxe8 {[%emt 0:01:00]} 36. Bxd5 {
[%emt 0:00:30]} b6 {[%emt 0:00:36]} 37. Kf1 {[%emt 0:00:25]} Kf8 {[%emt 0:00:
08]} 38. Ke1 {[%emt 0:00:17]} Ke7 {[%emt 0:01:02]} 39. Bb7 {[%emt 0:00:26]} a5
{[%emt 0:00:12]} 40. Kd2 {[%emt 0:01:38]} Bh5 41. Ne5 Bxe5 {[%emt 0:00:56]} 42.
dxe5 {[%emt 0:00:34]} Ke6 {[%emt 0:00:05]} 43. Kc3 {[%emt 0:02:21]} Kxe5 {
[%emt 0:00:06]} 44. b4 {[%emt 0:00:07]} Be2 {[%emt 0:01:53]} 45. Bc6 {[%emt 0:
02:02]} axb4+ {[%emt 0:01:10]} 46. axb4 {[%emt 0:01:01]} Bf1 {[%emt 0:00:18]}
1/2-1/2

[Event "82nd Brazilian-ch 2015"]
[Site "Rio de Janeiro"]
[Date "2016.01.12"]
[Round "5"]
[White "Mekhitarian, Krikor Sevag"]
[Black "Reis, Renan do Carmo"]
[Result "1-0"]
[ECO "C84"]
[WhiteElo "2555"]
[BlackElo "2254"]
[PlyCount "125"]
[EventDate "2016.??.??"]
[EventCountry "BRA"]
[TimeControl "5400+30"]

1. e4 {[%emt 0:09:55]} e5 {[%emt 0:00:00]} 2. Nf3 {[%emt 0:00:02]} Nc6 {
[%emt 0:00:08]} 3. Bb5 {[%emt 0:00:02]} a6 {[%emt 0:00:09]} 4. Ba4 {[%emt 0:00:
02]} Nf6 {[%emt 0:00:06]} 5. O-O {[%emt 0:00:45]} Be7 {[%emt 0:00:26]} 6. d3 {
[%emt 0:05:41]} b5 {[%emt 0:00:06]} 7. Bb3 {[%emt 0:00:01]} d6 {[%emt 0:00:07]}
8. a3 {[%emt 0:02:31]} Bg4 {[%emt 0:05:17]} 9. c3 {[%emt 0:00:46]} Na5 {
[%emt 0:00:45]} 10. Bc2 {[%emt 0:01:23]} c5 {[%emt 0:00:19]} 11. Nbd2 {[%emt 0:
00:13]} O-O {[%emt 0:01:14]} 12. Re1 {[%emt 0:00:08]} Qc7 {[%emt 0:05:22]} 13.
Nf1 {[%emt 0:00:55]} b4 {[%emt 0:05:23]} 14. Ne3 {[%emt 0:09:09]} Bd7 {[%emt 0:
02:21]} 15. axb4 {[%emt 0:08:31]} cxb4 {[%emt 0:00:03]} 16. Ba4 {[%emt 0:00:26]
} Nc6 {[%emt 0:15:00]} 17. d4 {[%emt 0:27:35]} bxc3 {[%emt 0:02:52]} 18. bxc3 {
[%emt 0:01:23]} exd4 {[%emt 0:15:07]} 19. cxd4 {[%emt 0:00:38]} Nb4 {[%emt 0:
02:14]} 20. Ba3 {[%emt 0:03:19]} a5 {[%emt 0:09:36]} 21. Bb3 {[%emt 0:06:05]}
Ng4 {[%emt 0:09:51]} 22. Nd5 {[%emt 0:05:07]} Nxd5 {[%emt 0:00:29]} 23. Bxd5 {
[%emt 0:00:03]} Rab8 {[%emt 0:03:01]} 24. e5 {[%emt 0:00:46]} Rfe8 {[%emt 0:02:
31]} 25. h3 {[%emt 0:10:29]} Nh6 {[%emt 0:00:10]} 26. exd6 {[%emt 0:03:21]}
Bxd6 {[%emt 0:00:26]} 27. Bxd6 {[%emt 0:00:27]} Qxd6 {[%emt 0:00:07]} 28. Rxa5
{[%emt 0:00:40]} Qf6 {[%emt 0:07:15]} 29. Ra7 {[%emt 0:01:13]} Qd6 {[%emt 0:03:
27]} 30. Bc4 {[%emt 0:00:47]} Rec8 {[%emt 0:02:51]} 31. Ne5 {[%emt 0:00:34]}
Be8 {[%emt 0:02:08]} 32. Ba2 {[%emt 0:01:15]} Rc7 {[%emt 0:01:54]} 33. Rxc7 {
[%emt 0:00:13]} Qxc7 {[%emt 0:00:01]} 34. Qd2 {[%emt 0:01:40]} Qa7 {[%emt 0:01:
31]} 35. Bb1 {[%emt 0:00:16]} f6 {[%emt 0:00:33]} 36. Nf3 {[%emt 0:00:31]} Nf7
{[%emt 0:00:50]} 37. Qc2 {[%emt 0:00:42]} g6 {[%emt 0:00:14]} 38. Ba2 {[%emt 0:
00:15]} Kg7 {[%emt 0:00:29]} 39. Qc4 {[%emt 0:00:56]} Ra8 {[%emt 0:01:40]} 40.
Bb3 {[%emt 0:00:10]} Qb7 {[%emt 0:00:57]} 41. Qe6 {[%emt 0:00:35]} Rb8 {
[%emt 0:00:33]} 42. Bd5 {[%emt 0:00:11]} Qb5 {[%emt 0:01:14]} 43. Bc4 {[%emt 0:
00:14]} Qb4 {[%emt 0:00:12]} 44. Ra1 {[%emt 0:00:44]} Qc3 {[%emt 0:01:53]} 45.
Re1 {[%emt 0:00:17]} Qb4 {[%emt 0:00:11]} 46. Ba2 {[%emt 0:00:22]} Qa5 {
[%emt 0:00:12]} 47. Rc1 {[%emt 0:00:31]} Ra8 {[%emt 0:00:54]} 48. Bd5 {[%emt 0:
00:31]} Rd8 {[%emt 0:01:08]} 49. Rc5 {[%emt 0:00:07]} Qa1+ {[%emt 0:00:16]} 50.
Kh2 {[%emt 0:00:01]} Qa7 {[%emt 0:00:17]} 51. g3 {[%emt 0:00:57]} Qb8 {[%emt 0:
00:19]} 52. Rc6 {[%emt 0:01:45]} Rxd5 {[%emt 0:01:10]} 53. Qxd5 {[%emt 0:00:06]
} Bxc6 {[%emt 0:00:03]} 54. Qxc6 {[%emt 0:00:04]} Nd6 {[%emt 0:00:10]} 55. Kg2
{[%emt 0:01:04]} Nf7 {[%emt 0:00:11]} 56. h4 {[%emt 0:00:46]} Qb4 {[%emt 0:00:
08]} 57. Qe6 {[%emt 0:00:39]} h5 {[%emt 0:00:26]} 58. Qe4 {[%emt 0:00:19]} Nd6
{[%emt 0:00:13]} 59. Qe7+ {[%emt 0:00:01]} Kh6 {[%emt 0:01:34]} 60. Qf8+ {
[%emt 0:00:30]} Kh7 {[%emt 0:00:08]} 61. Qe7+ {[%emt 0:00:45]} Kh6 {[%emt 0:00:
07]} 62. Qxf6 {[%emt 0:00:01]} Qb8 {[%emt 0:00:30]} 63. Ne5 {[%emt 0:00:27]}
1-0

[Event "82nd Brazilian-ch 2015"]
[Site "Rio de Janeiro"]
[Date "2016.01.12"]
[Round "5"]
[White "Santiago, Yago De Moura"]
[Black "Barbosa, Evandro Amorim"]
[Result "0-1"]
[ECO "A33"]
[WhiteElo "2422"]
[BlackElo "2461"]
[PlyCount "86"]
[EventDate "2016.??.??"]
[EventCountry "BRA"]
[TimeControl "5400+30"]

1. c4 c5 2. Nf3 Nc6 3. d4 cxd4 4. Nxd4 Nf6 5. Nc3 e6 6. g3 Qb6 7. Ndb5 d5 8.
Bf4 e5 9. cxd5 exf4 10. dxc6 Qxc6 11. Qa4 Bd7 12. Qxf4 Rc8 13. Nxa7 Qxh1 14.
Nxc8 Bxc8 15. Qb8 Qc6 16. Bg2 Qc4 17. Bxb7 Ba3 18. Qe5+ Be7 19. Bxc8 Qxc8 20.
Nb5 O-O 21. Qxe7 Qc6 22. Rd1 Qxb5 23. b4 Qb8 24. f3 Re8 25. Qd6 Qa8 26. Kf2
Qxa2 27. Rd2 Qb1 28. Kg2 h5 29. Qd4 Qe1 30. e4 Ra8 31. Qf2 Qc1 32. Rc2 Qd1 33.
Qd2 Qa1 34. b5 Qe5 35. b6 Rb8 36. Qb4 Rb7 37. Rc8+ Kh7 38. Rc6 h4 39. Rc5 Qe6
40. e5 h3+ 41. Kf2 Rxb6 42. Qd2 Nd7 43. Qc2+ g6 0-1

[Event "82nd Brazilian-ch 2015"]
[Site "Rio de Janeiro"]
[Date "2016.01.12"]
[Round "5"]
[White "Souza, Rafael Cabral de"]
[Black "Limp, Eduardo Thelio"]
[Result "1-0"]
[ECO "B40"]
[WhiteElo "2159"]
[BlackElo "2385"]
[PlyCount "71"]
[EventDate "2016.??.??"]
[EventCountry "BRA"]
[TimeControl "5400+30"]

1. e4 c5 2. Nf3 e6 3. Nc3 a6 4. g3 b5 5. d4 cxd4 6. Nxd4 Bb7 7. Bg2 d6 8. O-O
Nd7 9. Re1 Qc7 10. Bg5 Ngf6 11. a4 b4 12. Nd5 Nxd5 13. exd5 e5 14. Nc6 Bxc6 15.
dxc6 Nc5 16. Qd5 Be7 17. Be3 O-O 18. f4 Rad8 19. a5 Kh8 20. c3 Rb8 21. fxe5
bxc3 22. exd6 Qxd6 23. bxc3 Ne6 24. Qc4 Rb5 25. Bb6 Rc8 26. Rad1 Qa3 27. c7
Nxc7 28. Kh1 Rc5 29. Qxf7 Bf8 30. Bxc5 Qxc5 31. c4 Qxa5 32. Qd7 Rb8 33. Rf1 Qc5
34. Rf7 Na8 35. Rdf1 a5 36. Qb5 1-0

[Event "82nd Brazilian-ch 2015"]
[Site "Rio de Janeiro"]
[Date "2016.01.13"]
[Round "6"]
[White "Barbosa, Evandro Amorim"]
[Black "Brito, Luismar"]
[Result "1-0"]
[ECO "B90"]
[WhiteElo "2461"]
[BlackElo "2235"]
[PlyCount "49"]
[EventDate "2016.??.??"]
[EventCountry "BRA"]
[TimeControl "5400+30"]

1. e4 c5 2. Nf3 d6 3. d4 cxd4 4. Nxd4 Nf6 5. Nc3 a6 6. a4 e5 7. Nf3 Be6 8. Ng5
Nc6 9. Nxe6 fxe6 10. Bc4 Nd4 11. O-O Rc8 12. Ba2 Qb6 13. Rb1 Be7 14. Be3 Rc7
15. Bxe6 Qb4 16. Ba2 Rf8 17. Bg5 Qc5 18. Bxf6 Bxf6 19. Nd5 Rd7 20. c3 Ne6 21.
b4 Qa7 22. a5 Nf4 23. Nb6 Rd8 24. g3 Ng6 25. Qa4+ 1-0

[Event "82nd Brazilian-ch 2015"]
[Site "Rio de Janeiro"]
[Date "2016.01.13"]
[Round "6"]
[White "Limp, Eduardo Thelio"]
[Black "Choma, Ernani Francisco"]
[Result "1-0"]
[ECO "A48"]
[WhiteElo "2385"]
[BlackElo "2383"]
[PlyCount "107"]
[EventDate "2016.??.??"]
[EventCountry "BRA"]
[TimeControl "5400+30"]

1. Nf3 {[%emt 0:03:52]} Nf6 {[%emt 0:03:23]} 2. d4 {[%emt 0:00:10]} g6 {
[%emt 0:00:31]} 3. c3 {[%emt 0:00:07]} Bg7 {[%emt 0:00:08]} 4. Qc2 {[%emt 0:00:
09]} O-O {[%emt 0:02:49]} 5. e4 {[%emt 0:00:07]} d6 {[%emt 0:00:41]} 6. Be2 {
[%emt 0:00:23]} c5 {[%emt 0:01:42]} 7. dxc5 {[%emt 0:00:10]} dxc5 {[%emt 0:00:
04]} 8. Nbd2 {[%emt 0:00:38]} Qc7 {[%emt 0:01:32]} 9. O-O {[%emt 0:00:34]} Nc6
{[%emt 0:01:21]} 10. a4 {[%emt 0:00:12]} Ng4 {[%emt 0:08:30]} 11. g3 {[%emt 0:
07:43]} Rd8 {[%emt 0:14:04]} 12. Nc4 {[%emt 0:01:28]} h6 {[%emt 0:02:28]} 13.
Re1 {[%emt 0:11:45]} e5 {[%emt 0:12:49]} 14. Bf1 {[%emt 0:06:35]} b6 {[%emt 0:
02:07]} 15. h3 {[%emt 0:10:10]} Nf6 {[%emt 0:00:07]} 16. Ne3 {[%emt 0:00:12]}
Bb7 {[%emt 0:07:13]} 17. Nd2 {[%emt 0:00:39]} Rac8 {[%emt 0:02:00]} 18. Bg2 {
[%emt 0:04:08]} a6 {[%emt 0:06:11]} 19. Nd5 {[%emt 0:04:43]} Nxd5 {[%emt 0:00:
26]} 20. exd5 {[%emt 0:00:06]} Ne7 {[%emt 0:00:34]} 21. c4 {[%emt 0:01:45]} Nf5
{[%emt 0:00:11]} 22. Nf3 {[%emt 0:11:40]} Nd4 {[%emt 0:01:04]} 23. Qd1 {
[%emt 0:04:14]} b5 {[%emt 0:01:44]} 24. axb5 {[%emt 0:00:38]} axb5 {[%emt 0:00:
12]} 25. Bd2 {[%emt 0:00:23]} Qd6 {[%emt 0:10:18]} 26. b3 {[%emt 0:03:04]} f5 {
[%emt 0:02:09]} 27. Ra7 {[%emt 0:04:19]} Qb6 {[%emt 0:01:05]} 28. Ra2 {[%emt 0:
00:59]} Qd6 {[%emt 0:03:05]} 29. Bc3 {[%emt 0:03:43]} Ra8 {[%emt 0:00:27]} 30.
Rxa8 {[%emt 0:00:00]} Rxa8 {[%emt 0:00:25]} 31. Nh4 {[%emt 0:05:51]} e4 {
[%emt 0:08:31]} 32. Bxe4 {[%emt 0:01:19]} fxe4 {[%emt 0:01:27]} 33. Rxe4 {
[%emt 0:00:11]} Rf8 {[%emt 0:01:18]} 34. Qg4 {[%emt 0:02:00]} Nf3+ {[%emt 0:04:
01]} 35. Nxf3 {[%emt 0:00:51]} Bc8 {[%emt 0:00:03]} 36. Re6 {[%emt 0:04:41]}
Bxe6 {[%emt 0:00:46]} 37. Qxg6 {[%emt 0:00:09]} Qe7 {[%emt 0:02:32]} 38. Bxg7 {
[%emt 0:00:15]} Qxg7 {[%emt 0:00:22]} 39. Qxe6+ {[%emt 0:00:12]} Kh8 {[%emt 0:
00:32]} 40. Kg2 {[%emt 0:00:41]} bxc4 {[%emt 0:00:16]} 41. bxc4 {[%emt 0:00:06]
} Rf6 {[%emt 0:00:11]} 42. Qe8+ {[%emt 0:00:18]} Kh7 {[%emt 0:00:07]} 43. Qe4+
{[%emt 0:00:08]} Kh8 {[%emt 0:00:04]} 44. Ne5 {[%emt 0:00:31]} Qa7 {[%emt 0:00:
06]} 45. Ng4 {[%emt 0:00:31]} Rb6 {[%emt 0:00:11]} 46. Qe5+ {[%emt 0:00:31]}
Kg8 {[%emt 0:00:17]} 47. Nf6+ {[%emt 0:00:20]} Kf7 {[%emt 0:00:02]} 48. Ne4 {
[%emt 0:00:14]} Rb1 {[%emt 0:00:34]} 49. Qf5+ {[%emt 0:00:21]} Kg7 {[%emt 0:00:
02]} 50. Nxc5 {[%emt 0:00:57]} Qa1 {[%emt 0:00:06]} 51. Ne6+ {[%emt 0:00:24]}
Kh8 {[%emt 0:00:08]} 52. h4 {[%emt 0:01:57]} h5 {[%emt 0:01:49]} 53. Qf8+ {
[%emt 0:00:57]} Kh7 {[%emt 0:00:02]} 54. Ng5+ {[%emt 0:00:07]} 1-0

[Event "82nd Brazilian-ch 2015"]
[Site "Rio de Janeiro"]
[Date "2016.01.13"]
[Round "6"]
[White "Macedo, Maximo Iack"]
[Black "Souza, Rafael Cabral de"]
[Result "1-0"]
[ECO "E44"]
[WhiteElo "2316"]
[BlackElo "2159"]
[PlyCount "91"]
[EventDate "2016.??.??"]
[EventCountry "BRA"]
[TimeControl "5400+30"]

1. d4 Nf6 2. c4 e6 3. Nc3 Bb4 4. e3 b6 5. Nge2 Bb7 6. a3 Bxc3+ 7. Nxc3 O-O 8.
Bd3 d6 9. O-O Nbd7 10. e4 e5 11. d5 Nc5 12. Bc2 a5 13. Re1 Bc8 14. Rb1 Re8 15.
b4 Ncd7 16. Ba4 axb4 17. axb4 Rb8 18. Ra1 h6 19. Bc6 Re7 20. Ra7 Nf8 21. Nb5
Ng6 22. Qf3 Bg4 23. Qc3 Nh5 24. Be3 Nhf4 25. Bxf4 Nxf4 26. f3 Bc8 27. g3 Nh3+
28. Kg2 Ng5 29. h4 Nh7 30. Rea1 Bd7 31. Qa3 Bxc6 32. dxc6 Nf8 33. Ra8 Ne6 34.
Rxb8 Qxb8 35. Qa8 Qxa8 36. Rxa8+ Kh7 37. Nc3 f6 38. Nd5 Rf7 39. Re8 Nd4 40. b5
g6 41. Rb8 Kg7 42. Nxb6 f5 43. Nd5 fxe4 44. fxe4 Ne6 45. Re8 Nc5 46. b6 1-0

[Event "82nd Brazilian-ch 2015"]
[Site "Rio de Janeiro"]
[Date "2016.01.13"]
[Round "6"]
[White "Mekhitarian, Krikor Sevag"]
[Black "Leitao, Rafael Duailibe"]
[Result "1-0"]
[ECO "B90"]
[WhiteElo "2555"]
[BlackElo "2633"]
[PlyCount "129"]
[EventDate "2016.??.??"]
[EventCountry "BRA"]
[TimeControl "5400+30"]

1. e4 {[%emt 0:00:00]} c5 {[%emt 0:02:11]} 2. Nf3 {[%emt 0:00:00]} d6 {[%emt 0:
00:07]} 3. d4 {[%emt 0:00:07]} cxd4 {[%emt 0:00:06]} 4. Nxd4 {[%emt 0:00:02]}
Nf6 {[%emt 0:00:08]} 5. Nc3 {[%emt 0:00:03]} a6 {[%emt 0:00:05]} 6. Be3 {
[%emt 0:05:41]} e5 {[%emt 0:00:30]} 7. Nb3 {[%emt 0:00:04]} Be6 {[%emt 0:01:04]
} 8. f3 {[%emt 0:00:54]} Nbd7 {[%emt 0:01:50]} 9. Qd2 {[%emt 0:04:12]} h5 {
[%emt 0:02:38]} 10. O-O-O {[%emt 0:01:28]} Be7 {[%emt 0:01:07]} 11. Kb1 {
[%emt 0:00:30]} Qc7 {[%emt 0:05:47]} 12. Nd5 {[%emt 0:13:28]} Bxd5 {[%emt 0:07:
18]} 13. exd5 {[%emt 0:00:03]} Nb6 {[%emt 0:00:40]} 14. Qa5 {[%emt 0:15:42]}
Rc8 {[%emt 0:02:10]} 15. c3 {[%emt 0:00:14]} Nc4 {[%emt 0:05:14]} 16. Qxc7 {
[%emt 0:01:07]} Rxc7 {[%emt 0:00:05]} 17. Bf2 {[%emt 0:09:34]} Bd8 {[%emt 0:18:
22]} 18. Bd3 {[%emt 0:15:12]} O-O {[%emt 0:03:37]} 19. Rhe1 {[%emt 0:04:57]} g6
{[%emt 0:03:24]} 20. h3 {[%emt 0:05:48]} Kg7 {[%emt 0:20:19]} 21. g3 Nd7 {
[%emt 0:03:01]} 22. f4 {[%emt 0:13:35]} b5 {[%emt 0:04:49]} 23. f5 {[%emt 0:06:
08]} Nf6 {[%emt 0:00:40]} 24. Bc2 {[%emt 0:00:56]} Rc8 {[%emt 0:02:53]} 25. Nd2
Nxd2+ {[%emt 0:05:08]} 26. Rxd2 {[%emt 0:01:03]} Rb8 {[%emt 0:00:22]} 27. Be3 {
[%emt 0:00:48]} Bb6 {[%emt 0:06:47]} 28. Bg5 {[%emt 0:00:01]} Bd8 {[%emt 0:01:
59]} 29. Be3 {[%emt 0:00:58]} Bb6 {[%emt 0:00:10]} 30. Bg5 {[%emt 0:00:16]} Bd8
{[%emt 0:00:05]} 31. Rf1 {[%emt 0:01:47]} Nh7 {[%emt 0:01:17]} 32. Be3 {
[%emt 0:00:21]} Bb6 {[%emt 0:00:23]} 33. Bxb6 {[%emt 0:00:16]} Rxb6 {[%emt 0:
00:04]} 34. Rdf2 {[%emt 0:00:49]} Nf6 {[%emt 0:00:25]} 35. fxg6 {[%emt 0:00:49]
} fxg6 36. Be4 {[%emt 0:00:30]} Rbb8 {[%emt 0:02:05]} 37. Bg2 b4 {[%emt 0:00:
52]} 38. cxb4 {[%emt 0:00:21]} Rxb4 {[%emt 0:00:07]} 39. Rc1 {[%emt 0:00:20]}
Nd7 {[%emt 0:00:48]} 40. Rxf8 {[%emt 0:00:15]} Kxf8 {[%emt 0:00:04]} 41. Rc6 {
[%emt 0:00:45]} Rb6 {[%emt 0:01:03]} 42. h4 {[%emt 0:00:43]} Ke7 {[%emt 0:00:
33]} 43. Bh3 {[%emt 0:00:09]} Rb7 {[%emt 0:00:26]} 44. Rxa6 {[%emt 0:00:11]}
Nc5 {[%emt 0:00:25]} 45. Ra8 {[%emt 0:01:10]} Rb4 {[%emt 0:00:31]} 46. Bg2 {
[%emt 0:00:54]} e4 {[%emt 0:00:30]} 47. Kc2 {[%emt 0:00:32]} Rd4 {[%emt 0:00:
20]} 48. Ra3 {[%emt 0:00:19]} Kf6 {[%emt 0:00:16]} 49. Re3 {[%emt 0:00:21]} Ke5
{[%emt 0:00:04]} 50. a3 {[%emt 0:00:35]} Rc4+ {[%emt 0:01:25]} 51. Rc3 {
[%emt 0:00:43]} Rd4 {[%emt 0:00:09]} 52. Re3 {[%emt 0:00:24]} Rc4+ {[%emt 0:00:
05]} 53. Rc3 {[%emt 0:00:44]} Rd4 {[%emt 0:00:04]} 54. b4 {[%emt 0:00:20]} Nd3
{[%emt 0:00:25]} 55. Bf1 {[%emt 0:00:10]} Ne1+ {[%emt 0:00:22]} 56. Kc1 {
[%emt 0:00:07]} Rxd5 {[%emt 0:01:16]} 57. b5 {[%emt 0:00:12]} Nd3+ {[%emt 0:01:
19]} 58. Bxd3 {[%emt 0:00:22]} exd3 {[%emt 0:00:05]} 59. Rb3 {[%emt 0:00:53]}
Kd4 {[%emt 0:00:48]} 60. Kd2 {[%emt 0:00:42]} Rf5 {[%emt 0:00:27]} 61. Rb4+ {
[%emt 0:00:13]} Kc5 {[%emt 0:00:08]} 62. b6 {[%emt 0:00:04]} Rf2+ {[%emt 0:01:
01]} 63. Kxd3 {[%emt 0:00:15]} Rf3+ {[%emt 0:00:11]} 64. Ke4 {[%emt 0:00:47]}
Rxa3 {[%emt 0:00:50]} 65. b7 {[%emt 0:00:10]} 1-0